[Event "1st Konde Memorial 2025"]
[Site "Pune"]
[Date "2025.02.02"]
[Round "4.1"]
[White "Sammed Jaykumar, Shete"]
[Black "Patel Neehal Trishulkumar"]
[Result "1-0"]
[Annotator "ChessBase"]
[ECO "D02"]
[WhiteElo "2379"]
[BlackElo "1590"]
[PlyCount "83"]
[EventDate "2025.02.01"]
[EventType "swiss"]
[EventCountry "IND"]
[SourceTitle "playchess.com"]
[Source "ChessBase"]
[SourceQuality "1"]
[TimeControl "900+5"]

1. d4 {[%emt 0:00:04]} Nf6 {[%emt 0:00:03]} 2. Nf3 {[%emt 0:00:08]} e6 {[%emt 0:00:04]} 3. g3 {[%emt 0:00:04]} d5 {[%emt 0:00:07]} 4. Bg2 {[%emt 0:00:02]} c5 {[%emt 0:00:05]} 5. O-O {[%emt 0:00:04]} Nc6 {[%emt 0:00:04]} 6. b3 {[%emt 0:00:22]} Be7 {[%emt 0:00:16]} 7. Bb2 {[%emt 0:00:02]} O-O {[%emt 0:00:15]} 8. Nbd2 {[%emt 0:00:05]} b6 {[%emt 0:00:41]} 9. c4 {[%emt 0:00:08]} Bb7 {[%emt 0:00:03]} 10. dxc5 {[%emt 0:00:27]} bxc5 {[%emt 0:00:03]} 11. e3 {[%emt 0:00:32]} Qc7 {[%emt 0:00:26]} 12. a3 {[%emt 0:00:16]} Rad8 {[%emt 0:00:23]} 13. cxd5 {[%emt 0:00:20]} exd5 {[%emt 0:00:04]} 14. Qc2 {[%emt 0:00:01]} h6 {[%emt 0:01:05]} 15. Rac1 {[%emt 0:00:27]} Qd6 {[%emt 0:00:39]} 16. Nh4 {[%emt 0:00:14]} Bc8 {[%emt 0:00:53]} 17. b4 {[%emt 0:02:08]} c4 {[%emt 0:00:16]} 18. e4 {[%emt 0:00:36]} Nxe4 {[%emt 0:01:33]} 19. Nxe4 {[%emt 0:00:02]} dxe4 {[%emt 0:00:06]} 20. Qxe4 {[%emt 0:00:01]} Nd4 {[%emt 0:01:35]} 21. Bxd4 {[%emt 0:00:52]} Qxd4 {[%emt 0:02:24]} 22. Qxe7 {[%emt 0:00:21]} Be6 {[%emt 0:00:32]} 23. Nf3 {[%emt 0:00:13]} Qb2 {[%emt 0:00:14]} 24. Qxa7 {[%emt 0:00:04]} Ra8 {[%emt 0:00:04]} 25. Qc5 {[%emt 0:00:56]} Rac8 {[%emt 0:00:20]} 26. Qe5 {[%emt 0:00:06]} c3 {[%emt 0:00:08]} 27. Nd4 {[%emt 0:00:11]} Bc4 {[%emt 0:00:15]} 28. Nf5 {[%emt 0:00:38]} f6 {[%emt 0:00:21]} 29. Bd5+ {[%emt 0:00:01]} Bxd5 {[%emt 0:01:44]} 30. Qxd5+ {[%emt 0:00:03]} Kh7 {[%emt 0:00:06]} 31. Qd7 {[%emt 0:00:05]} Rg8 {[%emt 0:00:06]} 32. Ne7 {[%emt 0:00:02]} Rcd8 {[%emt 0:00:20]} 33. Qf5+ {[%emt 0:00:03]} g6 {[%emt 0:00:07]} 34. Qxf6 {[%emt 0:00:02]} Rg7 {[%emt 0:00:02]} 35. Nxg6 {[%emt 0:00:02]} Rd2 {[%emt 0:00:30]} 36. Nf8+ {[%emt 0:00:16]} Kg8 {[%emt 0:00:17]} 37. Ne6 {[%emt 0:00:02]} Rgd7 {[%emt 0:00:32]} 38. Rxc3 {[%emt 0:00:23]} Rc2 {[%emt 0:00:46]} 39. Qf8+ {[%emt 0:00:20]} Kh7 {[%emt 0:00:05]} 40. Qf5+ {[%emt 0:00:02]} Kg8 {[%emt 0:00:18]} 41. Rxc2 {[%emt 0:00:02]} Rf7 {[%emt 0:00:19]} 42. Rc8+ {[%emt 0:00:04]} 1-0

[Event "1st Konde Memorial 2025"]
[Site "Pune"]
[Date "2025.02.02"]
[Round "4.2"]
[White "Mali Shlok"]
[Black "Dixit, Nikhil"]
[Result "0-1"]
[Annotator "ChessBase"]
[ECO "B31"]
[WhiteElo "1796"]
[BlackElo "2349"]
[PlyCount "88"]
[EventDate "2025.02.01"]
[EventType "swiss"]
[EventCountry "IND"]
[SourceTitle "playchess.com"]
[Source "ChessBase"]
[SourceQuality "1"]
[TimeControl "900+5"]

1. e4 {[%emt 0:00:03]} c5 {[%emt 0:00:05]} 2. Nf3 {[%emt 0:00:12]} Nc6 {[%emt 0:00:01]} 3. Bb5 {[%emt 0:00:02]} g6 {[%emt 0:00:02]} 4. O-O {[%emt 0:00:07]} Bg7 {[%emt 0:00:01]} 5. Bxc6 {[%emt 0:00:13]} dxc6 {[%emt 0:00:02]} 6. Qe2 {[%emt 0:00:41]} Nf6 {[%emt 0:00:07]} 7. c4 {[%emt 0:00:18]} O-O {[%emt 0:00:09]} 8. Nc3 {[%emt 0:00:03]} Bg4 {[%emt 0:00:09]} 9. d3 {[%emt 0:00:28]} Nd7 {[%emt 0:00:01]} 10. Be3 {[%emt 0:01:04]} f5 {[%emt 0:00:32]} 11. exf5 {[%emt 0:02:48]} Rxf5 {[%emt 0:00:12]} 12. h3 {[%emt 0:00:17]} Bxf3 {[%emt 0:00:07]} 13. gxf3 {[%emt 0:00:02]} e5 {[%emt 0:01:26]} 14. Ne4 {[%emt 0:00:16]} Qh4 {[%emt 0:00:41]} 15. Kg2 {[%emt 0:00:23]} Raf8 {[%emt 0:00:24]} 16. Ng3 {[%emt 0:00:10]} Rxf3 {[%emt 0:00:47]} 17. Qxf3 {[%emt 0:00:07]} Rxf3 {[%emt 0:00:02]} 18. Kxf3 {[%emt 0:00:02]} Qxh3 {[%emt 0:00:08]} 19. Ke2 {[%emt 0:00:21]} Qg4+ {[%emt 0:00:38]} 20. Kd2 {[%emt 0:00:09]} e4 {[%emt 0:01:20]} 21. Nxe4 {[%emt 0:00:13]} Ne5 {[%emt 0:00:04]} 22. f4 {[%emt 0:00:25]} Qg2+ {[%emt 0:01:06]} 23. Rf2 {[%emt 0:00:40]} Nxc4+ {[%emt 0:00:03]} 24. dxc4 {[%emt 0:01:11]} Qxe4 {[%emt 0:00:03]} 25. f5 {[%emt 0:00:51]} Bxb2 {[%emt 0:00:34]} 26. Re1 {[%emt 0:00:55]} Qxc4 {[%emt 0:00:42]} 27. f6 {[%emt 0:01:02]} Bc3+ {[%emt 0:02:55]} 28. Kd1 {[%emt 0:00:21]} Bxe1 {[%emt 0:00:11]} 29. f7+ {[%emt 0:00:05]} Qxf7 {[%emt 0:00:02]} 30. Rxf7 {[%emt 0:00:02]} Kxf7 {[%emt 0:00:01]} 31. Kxe1 {[%emt 0:00:02]} b6 {[%emt 0:00:01]} 32. Bf4 {[%emt 0:00:03]} c4 {[%emt 0:00:01]} 33. Bb8 {[%emt 0:00:02]} a6 {[%emt 0:00:01]} 34. Ba7 {[%emt 0:00:05]} b5 {[%emt 0:00:00]} 35. a3 {[%emt 0:00:18]} Ke6 {[%emt 0:00:02]} 36. Kd2 {[%emt 0:00:07]} Kd5 {[%emt 0:00:01]} 37. Kc3 {[%emt 0:00:08]} c5 {[%emt 0:00:02]} 38. Bb8 {[%emt 0:00:06]} g5 {[%emt 0:00:03]} 39. Bc7 {[%emt 0:00:06]} h5 {[%emt 0:00:08]} 40. Bd8 {[%emt 0:00:01]} g4 {[%emt 0:00:02]} 41. Bh4 {[%emt 0:00:03]} a5 {[%emt 0:00:01]} 42. Bg3 {[%emt 0:00:06]} b4+ {[%emt 0:00:01]} 43. axb4 {[%emt 0:00:01]} cxb4+ {[%emt 0:00:02]} 44. Kc2 {[%emt 0:00:02]} a4 {[%emt 0:00:01]} 0-1

[Event "1st Konde Memorial 2025"]
[Site "Pune"]
[Date "2025.02.02"]
[Round "4.3"]
[White "Jain, Kushagra"]
[Black "Sunil, Vaidya"]
[Result "1-0"]
[Annotator "ChessBase"]
[ECO "B03"]
[WhiteElo "2150"]
[BlackElo "1580"]
[PlyCount "41"]
[EventDate "2025.02.01"]
[EventType "swiss"]
[EventCountry "IND"]
[SourceTitle "playchess.com"]
[Source "ChessBase"]
[SourceQuality "1"]
[TimeControl "900+5"]

1. e4 {[%emt 0:00:02]} Nf6 {[%emt 0:00:09]} 2. e5 {[%emt 0:00:07]} Nd5 {[%emt 0:00:03]} 3. d4 {[%emt 0:00:02]} d6 {[%emt 0:00:03]} 4. c4 {[%emt 0:00:01]} Nb6 {[%emt 0:00:03]} 5. f4 {[%emt 0:00:02]} dxe5 {[%emt 0:01:11]} 6. fxe5 {[%emt 0:00:03]} c5 {[%emt 0:00:15]} 7. d5 {[%emt 0:00:06]} e6 {[%emt 0:00:13]} 8. Nc3 {[%emt 0:00:52]} exd5 {[%emt 0:00:47]} 9. cxd5 {[%emt 0:00:07]} c4 {[%emt 0:00:46]} 10. Nf3 {[%emt 0:04:12]} Bb4 {[%emt 0:02:49]} 11. Bxc4 {[%emt 0:00:44]} O-O {[%emt 0:01:37]} 12. Bb3 {[%emt 0:00:46]} N8d7 {[%emt 0:01:22]} 13. O-O {[%emt 0:00:15]} Bc5+ {[%emt 0:00:52]} 14. Kh1 {[%emt 0:00:03]} Kh8 {[%emt 0:00:20]} 15. Bf4 {[%emt 0:00:36]} f6 {[%emt 0:00:32]} 16. e6 {[%emt 0:00:10]} Ne5 {[%emt 0:00:19]} 17. Nxe5 {[%emt 0:00:59]} fxe5 {[%emt 0:00:04]} 18. Bxe5 {[%emt 0:00:02]} Bd6 {[%emt 0:00:18]} 19. Qd4 {[%emt 0:00:33]} Qe7 {[%emt 0:00:38]} 20. Bxd6 {[%emt 0:00:21]} Qxd6 {[%emt 0:00:02]} 21. Ne4 {[%emt 0:00:03]} 1-0

[Event "1st Konde Memorial 2025"]
[Site "Pune"]
[Date "2025.02.02"]
[Round "4.4"]
[White "Apurv Shekhar Desmukh"]
[Black "Abhishek, Kelkar"]
[Result "1/2-1/2"]
[Annotator "ChessBase"]
[ECO "A12"]
[WhiteElo "1800"]
[BlackElo "2175"]
[PlyCount "195"]
[EventDate "2025.02.01"]
[EventType "swiss"]
[EventCountry "IND"]
[SourceTitle "playchess.com"]
[Source "ChessBase"]
[SourceQuality "1"]
[TimeControl "900+5"]

1. Nf3 {[%emt 0:00:04]} Nf6 {[%emt 0:00:07]} 2. g3 {[%emt 0:00:01]} d5 {[%emt 0:00:02]} 3. Bg2 {[%emt 0:00:03]} c6 {[%emt 0:00:01]} 4. O-O {[%emt 0:00:06]} Bf5 {[%emt 0:00:07]} 5. c4 {[%emt 0:00:27]} e6 {[%emt 0:00:04]} 6. b3 {[%emt 0:00:14]} Be7 {[%emt 0:00:03]} 7. Bb2 {[%emt 0:00:02]} a5 {[%emt 0:00:11]} 8. d3 {[%emt 0:00:45]} h6 {[%emt 0:00:06]} 9. a3 {[%emt 0:00:14]} O-O {[%emt 0:00:04]} 10. Nbd2 {[%emt 0:00:03]} Nbd7 {[%emt 0:00:03]} 11. Ra2 {[%emt 0:00:14]} Bg4 {[%emt 0:00:22]} 12. Qa1 {[%emt 0:00:28]} b5 {[%emt 0:00:14]} 13. h3 {[%emt 0:00:38]} Bh5 {[%emt 0:00:01]} 14. g4 {[%emt 0:00:01]} Bg6 {[%emt 0:00:01]} 15. Ne5 {[%emt 0:00:17]} Nxe5 {[%emt 0:00:05]} 16. Bxe5 {[%emt 0:00:03]} Qb6 {[%emt 0:00:21]} 17. d4 {[%emt 0:02:42]} bxc4 {[%emt 0:00:24]} 18. bxc4 {[%emt 0:00:03]} Qa6 {[%emt 0:00:39]} 19. Rc1 {[%emt 0:00:28]} Ra7 {[%emt 0:00:29]} 20. cxd5 {[%emt 0:02:05]} cxd5 {[%emt 0:00:05]} 21. Bf1 {[%emt 0:00:02]} Rb7 {[%emt 0:00:19]} 22. Rb2 {[%emt 0:01:24]} Rxb2 {[%emt 0:01:54]} 23. Qxb2 {[%emt 0:00:01]} Rc8 {[%emt 0:00:30]} 24. e3 {[%emt 0:02:38]} Rxc1 {[%emt 0:00:18]} 25. Qxc1 {[%emt 0:00:02]} Bd3 {[%emt 0:00:40]} 26. Bxf6 {[%emt 0:00:52]} Bxf6 {[%emt 0:00:14]} 27. Nb3 {[%emt 0:00:38]} Bxf1 {[%emt 0:02:08]} 28. Qxf1 {[%emt 0:00:01]} Qb6 {[%emt 0:00:01]} 29. Qd3 {[%emt 0:01:00]} Be7 {[%emt 0:00:47]} 30. Qc3 {[%emt 0:00:01]} Bxa3 {[%emt 0:02:40]} 31. Nxa5 {[%emt 0:00:01]} Qb1+ {[%emt 0:01:00]} 32. Kg2 {[%emt 0:00:10]} Bd6 {[%emt 0:00:40]} 33. Nc6 {[%emt 0:00:37]} h5 {[%emt 0:00:07]} 34. Ne5 {[%emt 0:00:24]} Qb8 {[%emt 0:00:39]} 35. f4 {[%emt 0:00:12]} hxg4 {[%emt 0:00:21]} 36. hxg4 {[%emt 0:00:01]} f6 {[%emt 0:00:17]} 37. Nd3 {[%emt 0:00:06]} Qe8 38. Nc5 {[%emt 0:00:05]} Qg6 39. Kg3 {[%emt 0:00:22]} f5 {[%emt 0:00:19]} 40. g5 {[%emt 0:00:06]} Qxg5+ {[%emt 0:00:01]} 41. Kf2 {[%emt 0:00:10]} Qh4+ {[%emt 0:00:12]} 42. Kg2 {[%emt 0:00:06]} Kf7 {[%emt 0:00:16]} 43. Nd3 {[%emt 0:00:05]} Qg4+ {[%emt 0:00:09]} 44. Kf2 {[%emt 0:00:02]} Qh4+ {[%emt 0:00:01]} 45. Kg2 {[%emt 0:00:01]} Qd8 {[%emt 0:00:02]} 46. Qc6 {[%emt 0:00:15]} Qc7 {[%emt 0:00:12]} 47. Qa4 {[%emt 0:00:17]} Ke7 {[%emt 0:00:14]} 48. Kf3 {[%emt 0:00:11]} Qc3 {[%emt 0:00:13]} 49. Qa7+ {[%emt 0:00:07]} Qc7 {[%emt 0:00:02]} 50. Qa4 {[%emt 0:00:02]} Qb7 {[%emt 0:00:10]} 51. Qc2 {[%emt 0:00:10]} Kf6 {[%emt 0:00:06]} 52. Qh2 {[%emt 0:00:07]} Qd7 {[%emt 0:00:40]} 53. Qh4+ {[%emt 0:00:02]} Kf7 {[%emt 0:00:01]} 54. Qh5+ {[%emt 0:00:06]} Kg8 {[%emt 0:00:02]} 55. Qg6 {[%emt 0:00:02]} Qf7 {[%emt 0:00:02]} 56. Qg5 {[%emt 0:00:05]} Be7 {[%emt 0:00:04]} 57. Qg2 {[%emt 0:00:09]} Qh5+ {[%emt 0:00:02]} 58. Kf2 {[%emt 0:00:01]} Bf6 {[%emt 0:00:09]} 59. Qf3 {[%emt 0:00:11]} Qh2+ {[%emt 0:00:02]} 60. Qg2 {[%emt 0:00:01]} Qh5 {[%emt 0:00:16]} 61. Ke1 {[%emt 0:00:07]} Bh4+ {[%emt 0:00:05]} 62. Kd2 {[%emt 0:00:02]} Bf6 {[%emt 0:00:04]} 63. Qg1 {[%emt 0:00:09]} Qf3 {[%emt 0:00:13]} 64. Qf2 {[%emt 0:00:03]} Qh1 {[%emt 0:00:03]} 65. Nc5 {[%emt 0:00:02]} Kf7 {[%emt 0:00:04]} 66. Ke2 {[%emt 0:00:03]} Be7 {[%emt 0:00:07]} 67. Nd3 {[%emt 0:00:02]} Bd6 {[%emt 0:00:03]} 68. Qf1 {[%emt 0:00:10]} Qxf1+ {[%emt 0:00:04]} 69. Kxf1 {[%emt 0:00:01]} Kf6 {[%emt 0:00:02]} 70. Kg2 {[%emt 0:00:01]} g5 {[%emt 0:00:01]} 71. fxg5+ {[%emt 0:00:13]} Kxg5 {[%emt 0:00:01]} 72. Kf3 {[%emt 0:00:00]} Bc7 {[%emt 0:00:15]} 73. Nc5 {[%emt 0:00:06]} Kf6 {[%emt 0:00:02]} 74. Nd7+ {[%emt 0:00:11]} Ke7 {[%emt 0:00:02]} 75. Nc5 {[%emt 0:00:01]} Bd6 {[%emt 0:00:01]} 76. Nd3 {[%emt 0:00:01]} Kf6 {[%emt 0:00:01]} 77. Nf2 {[%emt 0:00:11]} Kg5 {[%emt 0:00:16]} 78. Nh3+ {[%emt 0:00:06]} Kf6 {[%emt 0:00:07]} 79. Nf2 {[%emt 0:00:01]} Ba3 {[%emt 0:00:26]} 80. Nd3 {[%emt 0:00:04]} Bd6 {[%emt 0:00:01]} 81. Nf2 {[%emt 0:00:01]} Kg5 {[%emt 0:00:03]} 82. Nh3+ {[%emt 0:00:01]} Kg6 {[%emt 0:00:13]} 83. Nf2 {[%emt 0:00:03]} Kf6 {[%emt 0:00:00]} 84. Nd3 {[%emt 0:00:02]} e5 {[%emt 0:00:12]} 85. dxe5+ {[%emt 0:00:05]} Bxe5 {[%emt 0:00:02]} 86. Nb4 {[%emt 0:00:07]} Ke6 {[%emt 0:00:01]} 87. Nc6 {[%emt 0:00:17]} Kd6 {[%emt 0:00:07]} 88. Nb4 {[%emt 0:00:03]} Ke6 {[%emt 0:00:13]} 89. Nc6 {[%emt 0:00:01]} Bd6 {[%emt 0:00:01]} 90. Nd4+ {[%emt 0:00:04]} Kf6 {[%emt 0:00:03]} 91. Nb5 {[%emt 0:00:05]} Bb8 {[%emt 0:00:07]} 92. Nc3 {[%emt 0:00:03]} Ke6 {[%emt 0:00:26]} 93. Nb5 {[%emt 0:00:04]} Be5 {[%emt 0:00:00]} 94. Na3 {[%emt 0:00:07]} Kd6 {[%emt 0:00:00]} 95. Nc2 {[%emt 0:00:04]} Ke6 {[%emt 0:00:00]} 96. Nb4 {[%emt 0:00:03]} Bd6 {[%emt 0:00:03]} 97. Nc6 {[%emt 0:00:01]} Be5 {[%emt 0:00:06]} 98. Nb4 {[%emt 0:00:02]} 1/2-1/2

[Event "1st Konde Memorial 2025"]
[Site "Pune"]
[Date "2025.02.02"]
[Round "4.5"]
[White "Jain Kashish Manoj"]
[Black "Chavan Aditya"]
[Result "1-0"]
[Annotator "ChessBase"]
[ECO "B30"]
[WhiteElo "2363"]
[BlackElo "1713"]
[PlyCount "43"]
[EventDate "2025.02.01"]
[EventType "swiss"]
[EventCountry "IND"]
[SourceTitle "playchess.com"]
[Source "ChessBase"]
[SourceQuality "1"]
[TimeControl "900+5"]

1. e4 {[%emt 0:00:03]} c5 {[%emt 0:00:02]} 2. Nf3 {[%emt 0:00:01]} Nc6 {[%emt 0:00:02]} 3. Bb5 {[%emt 0:00:03]} Nf6 {[%emt 0:00:05]} 4. Nc3 {[%emt 0:00:03]} Qc7 {[%emt 0:00:48]} 5. O-O {[%emt 0:00:07]} d6 {[%emt 0:01:16]} 6. Re1 {[%emt 0:01:11]} e5 {[%emt 0:00:18]} 7. d3 {[%emt 0:01:43]} Be7 {[%emt 0:01:52]} 8. Bg5 {[%emt 0:01:07]} Be6 {[%emt 0:00:33]} 9. Bxf6 {[%emt 0:00:46]} Bxf6 {[%emt 0:00:18]} 10. Nd5 {[%emt 0:00:02]} Bxd5 {[%emt 0:03:03]} 11. exd5 {[%emt 0:00:02]} a6 {[%emt 0:07:43]} 12. Bxc6+ {[%emt 0:05:10]} bxc6 {[%emt 0:00:00]} 13. dxc6 {[%emt 0:00:25]} O-O {[%emt 0:00:00]} 14. c4 {[%emt 0:00:23]} Qxc6 {[%emt 0:00:00]} 15. Nd2 {[%emt 0:00:01]} g6 {[%emt 0:00:00]} 16. Ne4 {[%emt 0:00:03]} Bg7 {[%emt 0:00:00]} 17. Nc3 {[%emt 0:00:01]} Rab8 {[%emt 0:00:00]} 18. Nd5 {[%emt 0:00:05]} Qd7 {[%emt 0:00:00]} 19. Rb1 {[%emt 0:00:02]} f5 {[%emt 0:00:00]} 20. b4 {[%emt 0:00:30]} cxb4 {[%emt 0:00:00]} 21. Nxb4 {[%emt 0:00:02]} e4 {[%emt 0:00:30]} 22. Nd5 {[%emt 0:00:07]} 1-0

[Event "1st Konde Memorial 2025"]
[Site "Pune"]
[Date "2025.02.02"]
[Round "4.6"]
[White "Shete Soham"]
[Black "Sherla Prathamesh"]
[Result "0-1"]
[Annotator "ChessBase"]
[ECO "A06"]
[WhiteElo "1700"]
[BlackElo "2191"]
[PlyCount "52"]
[EventDate "2025.02.01"]
[EventType "swiss"]
[EventCountry "IND"]
[SourceTitle "playchess.com"]
[Source "ChessBase"]
[SourceQuality "1"]
[TimeControl "900+5"]

1. b3 {[%emt 0:00:03]} Nf6 {[%emt 0:00:05]} 2. Bb2 {[%emt 0:00:02]} c5 {[%emt 0:00:01]} 3. e3 {[%emt 0:00:01]} Nc6 {[%emt 0:00:01]} 4. Nf3 {[%emt 0:00:03]} d5 {[%emt 0:00:01]} 5. Be2 {[%emt 0:00:07]} Qc7 {[%emt 0:00:12]} 6. d3 {[%emt 0:00:13]} e5 {[%emt 0:00:02]} 7. h3 {[%emt 0:00:18]} Bd6 {[%emt 0:00:04]} 8. c4 {[%emt 0:00:05]} d4 {[%emt 0:00:04]} 9. e4 {[%emt 0:00:05]} h6 {[%emt 0:00:11]} 10. Nbd2 {[%emt 0:00:18]} Nh5 {[%emt 0:00:07]} 11. Nxd4 {[%emt 0:01:55]} Nf4 {[%emt 0:00:28]} 12. Nb5 {[%emt 0:00:22]} Qe7 {[%emt 0:00:01]} 13. Rg1 {[%emt 0:02:21]} a6 {[%emt 0:00:24]} 14. Nc3 {[%emt 0:00:08]} Nd4 {[%emt 0:01:19]} 15. Nf3 {[%emt 0:00:26]} Be6 {[%emt 0:02:02]} 16. Bc1 {[%emt 0:02:54]} Qf6 {[%emt 0:00:35]} 17. Nxd4 {[%emt 0:01:25]} cxd4 {[%emt 0:00:42]} 18. Nd5 {[%emt 0:01:17]} Bxd5 {[%emt 0:00:04]} 19. cxd5 {[%emt 0:00:07]} Bb4+ {[%emt 0:00:31]} 20. Bd2 {[%emt 0:00:01]} Bc3 {[%emt 0:00:04]} 21. Bxc3 {[%emt 0:01:03]} dxc3 {[%emt 0:00:01]} 22. Rc1 {[%emt 0:00:01]} Qg5 {[%emt 0:00:22]} 23. Kf1 {[%emt 0:00:26]} Rc8 {[%emt 0:00:37]} 24. Bg4 {[%emt 0:00:01]} Rc5 {[%emt 0:01:45]} 25. Rc2 {[%emt 0:00:15]} h5 {[%emt 0:00:35]} 26. Bf3 {[%emt 0:00:02]} O-O {[%emt 0:00:22]} 0-1

[Event "1st Konde Memorial 2025"]
[Site "Pune"]
[Date "2025.02.02"]
[Round "4.8"]
[White "Sarvankar Girish"]
[Black "Chavan Nameet"]
[Result "0-1"]
[Annotator "NA"]
[ECO "A43"]
[WhiteElo "1656"]
[BlackElo "1877"]
[PlyCount "74"]
[EventDate "2025.02.01"]
[EventType "swiss"]
[EventCountry "IND"]
[SourceTitle "playchess.com"]
[Source "ChessBase"]
[SourceQuality "1"]
[TimeControl "900+5"]

1. d4 {[%emt 0:00:02]} c5 {[%emt 0:00:01]} 2. d5 {[%emt 0:00:07]} Nf6 {[%emt 0:00:02]} 3. Nc3 {[%emt 0:00:04]} e6 {[%emt 0:00:01]} 4. e4 {[%emt 0:00:03]} exd5 {[%emt 0:00:04]} 5. exd5 {[%emt 0:00:05]} d6 {[%emt 0:00:01]} 6. Nf3 {[%emt 0:00:11]} g6 {[%emt 0:00:03]} 7. h3 {[%emt 0:00:07]} Bg7 {[%emt 0:00:01]} 8. Be2 {[%emt 0:00:12]} O-O {[%emt 0:00:03]} 9. O-O {[%emt 0:00:03]} Na6 {[%emt 0:00:01]} 10. a4 {[%emt 0:00:20]} Nb4 {[%emt 0:00:22]} 11. Bg5 {[%emt 0:00:38]} Bf5 {[%emt 0:00:08]} 12. Rc1 {[%emt 0:00:44]} a6 {[%emt 0:00:23]} 13. Nd2 {[%emt 0:00:36]} h6 {[%emt 0:00:05]} 14. Bxf6 {[%emt 0:00:19]} Bxf6 {[%emt 0:00:17]} 15. Bf3 {[%emt 0:00:31]} Bxc3 {[%emt 0:00:21]} 16. bxc3 {[%emt 0:00:08]} Na2 {[%emt 0:00:01]} 17. Nc4 {[%emt 0:00:28]} Nxc1 {[%emt 0:00:09]} 18. Qxc1 {[%emt 0:00:02]} b5 {[%emt 0:00:14]} 19. Ne3 {[%emt 0:00:41]} Qg5 {[%emt 0:00:10]} 20. Kh1 {[%emt 0:01:05]} Rfe8 {[%emt 0:00:23]} 21. a5 {[%emt 0:00:45]} Be4 {[%emt 0:00:44]} 22. Qd1 {[%emt 0:00:26]} h5 {[%emt 0:00:38]} 23. Rg1 {[%emt 0:00:44]} Bxf3 {[%emt 0:00:28]} 24. Qxf3 {[%emt 0:00:14]} Re7 {[%emt 0:00:10]} 25. Rb1 {[%emt 0:02:35]} Rae8 {[%emt 0:00:04]} 26. Kg1 {[%emt 0:01:57]} Rxe3 {[%emt 0:00:04]} 27. fxe3 {[%emt 0:00:07]} Qxe3+ {[%emt 0:00:01]} 28. Qf2 {[%emt 0:00:30]} Qxc3 {[%emt 0:00:12]} 29. Kh1 {[%emt 0:01:14]} Qd4 {[%emt 0:00:04]} 30. Qf3 {[%emt 0:00:13]} Qe4 {[%emt 0:00:02]} 31. Qf6 {[%emt 0:00:22]} Qxd5 {[%emt 0:00:04]} 32. Rf1 {[%emt 0:00:03]} Qe6 {[%emt 0:00:06]} 33. Qg5 {[%emt 0:00:06]} Qe5 {[%emt 0:00:13]} 34. Qh4 {[%emt 0:00:32]} Qe2 {[%emt 0:00:30]} 35. Rf2 {[%emt 0:00:59]} Qe1+ {[%emt 0:00:13]} 36. Kh2 {[%emt 0:00:01]} d5 {[%emt 0:00:12]} 37. g4 {[%emt 0:00:23]} Re2 {[%emt 0:00:13]} 0-1

[Event "1st Konde Memorial 2025"]
[Site "Pune"]
[Date "2025.02.02"]
[Round "4.9"]
[White "Bhosale Shriraj"]
[Black "Joglekar, Abhijit"]
[Result "1-0"]
[Annotator "NA"]
[ECO "A07"]
[WhiteElo "2125"]
[BlackElo "1697"]
[PlyCount "103"]
[EventDate "2025.02.01"]
[EventType "swiss"]
[EventCountry "IND"]
[SourceTitle "playchess.com"]
[Source "ChessBase"]
[SourceQuality "1"]
[TimeControl "900+5"]

1. Nf3 {[%emt 0:00:03]} Nf6 {[%emt 0:00:03]} 2. g3 {[%emt 0:00:01]} d5 {[%emt 0:00:02]} 3. Bg2 {[%emt 0:00:02]} c6 {[%emt 0:00:05]} 4. O-O {[%emt 0:00:03]} Bg4 {[%emt 0:00:27]} 5. Ne5 {[%emt 0:00:41]} Bf5 {[%emt 0:00:15]} 6. c4 {[%emt 0:00:22]} e6 {[%emt 0:00:08]} 7. b3 {[%emt 0:00:08]} Bd6 {[%emt 0:00:11]} 8. Bb2 {[%emt 0:00:05]} O-O {[%emt 0:00:10]} 9. d3 {[%emt 0:00:02]} Qc7 {[%emt 0:00:47]} 10. Nf3 {[%emt 0:00:04]} Nbd7 {[%emt 0:00:18]} 11. Nbd2 {[%emt 0:00:03]} h6 {[%emt 0:00:32]} 12. Rc1 {[%emt 0:00:14]} Rfe8 {[%emt 0:00:43]} 13. Re1 {[%emt 0:00:42]} Qa5 {[%emt 0:00:41]} 14. e4 {[%emt 0:00:17]} dxe4 {[%emt 0:01:44]} 15. dxe4 {[%emt 0:00:02]} Bg4 {[%emt 0:01:01]} 16. h3 {[%emt 0:00:14]} Bxf3 {[%emt 0:00:37]} 17. Nxf3 {[%emt 0:00:02]} Be5 {[%emt 0:02:11]} 18. Nxe5 {[%emt 0:00:19]} Nxe5 {[%emt 0:00:01]} 19. b4 {[%emt 0:00:55]} Qc7 {[%emt 0:00:02]} 20. f4 {[%emt 0:00:06]} Ng6 {[%emt 0:01:11]} 21. e5 {[%emt 0:00:16]} Nh7 {[%emt 0:00:21]} 22. Kh2 {[%emt 0:00:49]} Rad8 {[%emt 0:00:06]} 23. Qe2 {[%emt 0:00:14]} a5 {[%emt 0:00:58]} 24. b5 {[%emt 0:00:11]} c5 {[%emt 0:00:13]} 25. Rcd1 {[%emt 0:00:24]} Ne7 {[%emt 0:00:12]} 26. Be4 {[%emt 0:00:16]} Nf5 {[%emt 0:00:16]} 27. Bxf5 {[%emt 0:00:35]} exf5 {[%emt 0:00:01]} 28. Rxd8 {[%emt 0:00:01]} Qxd8 {[%emt 0:00:18]} 29. Rd1 {[%emt 0:00:06]} Qc7 {[%emt 0:00:23]} 30. Qd3 {[%emt 0:00:04]} Qc8 {[%emt 0:01:07]} 31. Qd6 {[%emt 0:00:53]} Nf8 {[%emt 0:00:30]} 32. Qb6 {[%emt 0:00:30]} Qe6 {[%emt 0:00:35]} 33. Qxe6 {[%emt 0:00:16]} Nxe6 {[%emt 0:00:02]} 34. b6 {[%emt 0:00:49]} Rd8 {[%emt 0:00:21]} 35. Rd5 {[%emt 0:00:01]} Rc8 {[%emt 0:00:12]} 36. Bc3 {[%emt 0:00:14]} a4 {[%emt 0:00:03]} 37. Rd7 {[%emt 0:00:07]} Rd8 {[%emt 0:00:15]} 38. Rxb7 {[%emt 0:00:14]} Rd3 {[%emt 0:00:01]} 39. Ra7 {[%emt 0:00:09]} Rxc3 {[%emt 0:00:13]} 40. b7 {[%emt 0:00:01]} Rc2+ {[%emt 0:00:01]} 41. Kg1 {[%emt 0:00:01]} Rc1+ {[%emt 0:00:07]} 42. Kf2 {[%emt 0:00:03]} Rc2+ {[%emt 0:00:02]} 43. Ke1 {[%emt 0:00:09]} Rb2 {[%emt 0:00:53]} 44. Ra8+ {[%emt 0:00:02]} Kh7 {[%emt 0:00:00]} 45. b8=Q Rxb8 {[%emt 0:00:02]} 46. Rxb8 {[%emt 0:00:02]} Nd4 {[%emt 0:00:04]} 47. Rc8 {[%emt 0:00:14]} Nc2+ {[%emt 0:00:06]} 48. Kd2 {[%emt 0:00:08]} Nb4 {[%emt 0:00:03]} 49. a3 {[%emt 0:00:10]} Na6 {[%emt 0:00:07]} 50. Rc6 {[%emt 0:00:03]} Nb8 {[%emt 0:00:04]} 51. Rxc5 {[%emt 0:00:02]} Nd7 {[%emt 0:00:02]} 52. Rb5 {[%emt 0:00:08]} 1-0